bitfinex/quotes_BTCUSD_20220303
["timestamp","ask_amount","ask_price","bid_price","bid_amount"]
[1646284804524,0.307708,43476.0,43471.0,0.01]
[1646284804722,0.307708,43476.0,43472.0,0.00014357]
[1646284805123,0.3,43477.0,43472.0,0.00014357]
[1646284805323,0.3,43477.0,43472.0,8.357e-05]
[1646284805324,0.307708,43476.0,43472.0,8.357e-05]
[1646284805530,0.64119434,43476.0,43472.0,0.00108357]
[1646284805775,0.28728634,43475.0,43472.0,0.001]
[1646284805976,0.607708,43474.0,43472.0,0.001]
[1646284806175,0.55095131,43473.0,43472.0,0.001]
[1646284806578,0.66183121,43473.0,43472.0,0.001]
[1646284806776,0.55095131,43473.0,43471.0,0.01]
[1646284806979,0.307708,43472.0,43471.0,0.01]
[1646284807279,0.21245152,43472.0,43471.0,0.01]
[1646284807478,0.52415952,43472.0,43471.0,0.01]
[1646284807776,0.21645152,43472.0,43471.0,0.01]
[1646284808179,0.004,43472.0,43471.0,0.01]
[1646284808378,0.311708,43472.0,43471.0,0.01]
[1646284808578,0.004,43472.0,43471.0,0.01]
[1646284808879,0.55095131,43473.0,43471.0,0.01]
[1646284809080,0.1108799,43472.0,43471.0,0.01]
[1646284809533,0.4108799,43472.0,43471.0,0.01]
[1646284810233,0.1108799,43472.0,43471.0,0.01]
[1646284810434,0.25495131,43473.0,43471.0,0.01]
[1646284810635,0.25495131,43473.0,43464.0,0.2136463]
[1646284810636,0.19739131,43473.0,43464.0,0.2136463]
[1646284810841,0.59339131,43473.0,43459.0,0.33622421]
[1646284811035,0.29339131,43473.0,43466.0,0.17588305]
[1646284811236,0.29339131,43473.0,43466.0,0.17490741]
[1646284811837,0.1,43476.0,43470.0,0.16946448]
[1646284812235,0.1,43478.0,43470.0,0.16946448]
[1646284812436,0.307708,43477.0,43470.0,0.16946448]
[1646284812635,0.68728634,43480.0,43467.0,0.02305]
[1646284812838,0.17249402,43479.0,43467.0,0.02305]
[1646284813037,0.307708,43478.0,43467.0,0.02321445]
[1646284813269,0.1,43477.0,43467.0,0.02321445]
[1646284813570,0.1,43477.0,43467.0,0.01821445]
[1646284813768,0.1,43477.0,43467.0,0.18781156]
[1646284813964,0.1,43477.0,43467.0,0.18764711]
[1646284814164,0.1,43477.0,43467.0,0.18781155]
[1646284814374,0.3,43476.0,43467.0,0.00016444]
[1646284815170,0.307708,43477.0,43466.0,0.34039129]
[1646284815368,0.38728634,43478.0,43467.0,0.00016444]
[1646284815570,0.307708,43477.0,43468.0,0.18632805]
[1646284816371,0.1,43478.0,43466.0,0.34039129]
[1646284816569,0.1,43478.0,43466.0,0.64039129]
[1646284816769,0.1,43478.0,43467.0,0.00016197]
[1646284817020,0.307708,43477.0,43467.0,0.00016197]
[1646284817621,0.1,43478.0,43466.0,0.64039129]
[1646284817819,0.1,43478.0,43467.0,0.00016197]
[1646284818420,0.1,43478.0,43468.0,0.16885857]
[1646284818622,0.1,43478.0,43467.0,0.00016197]
[1646284818824,0.1,43478.0,43466.0,0.64039129]
[1646284819022,0.1,43478.0,43467.0,0.00016197]
[1646284819822,0.55978036,43479.0,43467.0,0.00016197]
[1646284820023,0.55978036,43479.0,43466.0,0.64039129]
[1646284820224,0.55978036,43479.0,43467.0,0.00015585]
[1646284820427,0.27249402,43479.0,43467.0,0.00015585]
[1646284820665,0.297681,43478.0,43467.0,0.00015585]
[1646284820865,0.1,43478.0,43467.0,0.00015585]
[1646284821264,0.1,43478.0,43466.0,0.66344129]
[1646284821467,0.1,43478.0,43467.0,0.00015585]
[1646284822064,0.27249402,43479.0,43467.0,0.00015585]
[1646284822267,0.17249402,43479.0,43467.0,0.00015585]
[1646284822465,0.17249402,43479.0,43466.0,0.66344129]
[1646284822665,0.17249402,43479.0,43467.0,0.00015585]
[1646284823066,0.297681,43479.0,43471.0,0.20398865]
[1646284823267,0.297681,43479.0,43472.0,0.3]
[1646284823467,0.29877634,43482.0,43472.0,0.3]
[1646284823667,0.28728634,43482.0,43472.0,0.3]
[1646284823865,0.38728634,43482.0,43472.0,0.3]
[1646284824070,0.297681,43481.0,43474.0,0.16703128]
[1646284824266,0.297681,43482.0,43474.0,0.16703128]
[1646284824524,0.297681,43482.0,43475.0,0.3]
[1646284824724,0.193,43483.0,43474.0,0.16703128]
[1646284824922,0.193,43483.0,43475.0,0.3]
[1646284825124,0.193,43483.0,43474.0,0.16703128]
[1646284825125,0.297681,43482.0,43474.0,0.16703128]
[1646284825324,0.23920729,43482.0,43475.0,0.3]
[1646284825622,0.23920729,43482.0,43475.0,0.002]
[1646284826121,0.23920729,43482.0,43475.0,0.302]
[1646284826324,0.23920729,43483.0,43481.0,0.15486626]
[1646284826523,0.23920729,43483.0,43475.0,0.302]
[1646284826524,0.23920729,43485.0,43482.0,0.3]
[1646284826726,0.23920729,43485.0,43475.0,0.1188]
[1646284826925,0.23920729,43485.0,43476.0,0.655305]
[1646284827124,0.23920729,43486.0,43485.0,0.25947701]
[1646284827524,0.23920729,43486.0,43482.0,0.3]
[1646284827724,0.23920729,43486.0,43482.0,0.355305]
[1646284828161,0.23920729,43486.0,43483.0,0.355305]
[1646284828364,0.28728634,43489.0,43483.0,0.355305]
[1646284828365,0.23920729,43487.0,43483.0,0.355305]
[1646284829464,0.23920729,43487.0,43484.0,0.27134792]
[1646284830463,0.23920729,43487.0,43483.0,0.16305962]
[1646284830865,0.23920729,43486.0,43483.0,0.355305]
[1646284831069,0.23920729,43486.0,43478.0,0.355305]
[1646284831264,0.23920729,43486.0,43477.0,0.3]
[1646284831265,0.23920729,43486.0,43476.0,0.3]
[1646284831469,0.23920729,43486.0,43478.0,0.23307597]
[1646284831470,0.23920729,43484.0,43478.0,0.23307597]
[1646284831764,0.23920729,43484.0,43477.0,0.53487801]
[1646284832027,0.19608312,43483.0,43477.0,0.17957301]
[1646284832224,0.19608312,43483.0,43478.0,0.355305]
[1646284832426,0.19608312,43483.0,43477.0,0.17957301]
[1646284832626,0.23920729,43484.0,43479.0,0.2820456]
[1646284833624,0.23920729,43484.0,43479.0,0.2840456]
[1646284834025,0.23920729,43484.0,43480.0,0.85818265]
[1646284834227,0.23920729,43485.0,43480.0,0.50287765]
[1646284834428,0.23920729,43485.0,43481.0,0.355305]
[1646284835025,0.23920729,43485.0,43484.0,0.20614644]
[1646284835228,0.23920729,43485.0,43480.0,0.50287765]
[1646284835427,0.23920729,43485.0,43481.0,0.355305]
[1646284836268,0.23920729,43485.0,43483.0,0.355305]
[1646284837666,0.23920729,43485.0,43483.0,0.001]
[1646284838869,0.23920729,43485.0,43483.0,0.355305]
[1646284839268,0.23920729,43485.0,43482.0,0.15423219]
[1646284840112,0.23920729,43485.0,43481.0,0.355305]
[1646284840512,0.23920729,43485.0,43480.0,0.50287765]
[1646284841111,0.23920729,43485.0,43480.0,0.20287765]
[1646284841313,0.23920729,43486.0,43480.0,0.20287765]
[1646284841711,0.23920729,43486.0,43481.0,0.3]
[1646284842110,0.23920729,43486.0,43482.0,0.22488112]
[1646284843265,0.23920729,43486.0,43480.0,0.20287765]
[1646284844268,0.23920729,43486.0,43480.0,0.44537318]
[1646284844470,0.23920729,43486.0,43480.0,0.20287765]
[1646284845275,0.23920729,43485.0,43480.0,0.20287765]
[1646284850526,0.23920729,43485.0,43480.0,0.20276944]
[1646284851777,0.23920729,43485.0,43484.0,0.17915597]
[1646284851979,0.23920729,43486.0,43484.0,0.355305]
[1646284852182,0.23920729,43487.0,43485.0,0.355305]
[1646284852380,0.23920729,43486.0,43482.0,0.355305]
[1646284853180,0.23920729,43485.0,43482.0,0.355305]
[1646284853580,0.23920729,43486.0,43482.0,0.355305]
[1646284853779,0.23920729,43485.0,43482.0,0.355305]
[1646284854720,0.23920729,43485.0,43482.0,0.55140225]
[1646284855721,0.23920729,43485.0,43482.0,0.19609725]
[1646284856124,0.23920729,43485.0,43482.0,0.355305]
[1646284856322,0.23920729,43484.0,43482.0,0.355305]
[1646284857922,0.23890095,43484.0,43480.0,0.20276944]
[1646284858177,0.23890095,43484.0,43481.0,0.355305]
[1646284858377,0.23890095,43484.0,43480.0,0.20276944]
[1646284858573,0.23890095,43484.0,43481.0,0.355305]
[1646284858775,0.23890095,43484.0,43480.0,0.20276944]
[1646284858973,0.23890095,43484.0,43481.0,0.355305]
[1646284859175,0.23890095,43484.0,43480.0,0.20276944]
[1646284859374,0.28728634,43486.0,43481.0,0.355305]
[1646284859574,0.28728634,43486.0,43480.0,0.20276944]
[1646284860780,0.28728634,43486.0,43477.0,0.001]
[1646284860978,0.18490906,43489.0,43478.0,0.355305]
[1646284860979,0.28728634,43485.0,43478.0,0.355305]
[1646284861178,0.28728634,43484.0,43476.0,0.355305]
[1646284862418,0.28728634,43484.0,43478.0,0.355305]
[1646284863018,0.28728634,43483.0,43478.0,0.355305]
[1646284865023,0.38734687,43489.0,43478.0,0.355305]
[1646284865024,0.14490081,43488.0,43478.0,0.355305]
[1646284865220,0.28725199,43483.0,43477.0,0.23231173]
[1646284865420,0.28725199,43482.0,43478.0,0.355305]
[1646284866977,0.23941498,43479.0,43478.0,0.355305]
[1646284867178,0.23941498,43479.0,43478.0,0.35636316]
[1646284868379,0.28725199,43481.0,43478.0,0.35636316]
[1646284868680,0.28725199,43481.0,43480.0,0.3563632]
[1646284869430,0.18023371,43482.0,43480.0,0.3563632]
[1646284869630,0.18023371,43482.0,43480.0,0.355305]
[1646284871033,0.18223371,43482.0,43480.0,0.355305]
[1646284872033,0.18223371,43482.0,43480.0,0.23664082]
[1646284872232,0.33512732,43483.0,43480.0,0.23664082]
[1646284873035,0.33512732,43483.0,43480.0,0.23764082]
[1646284874080,0.33512732,43483.0,43480.0,0.001]
[1646284874282,0.28737361,43481.0,43477.0,0.23231173]
[1646284874482,0.28737361,43481.0,43480.0,0.00105816]
[1646284874686,0.28737361,43481.0,43480.0,0.35637616]
[1646284874984,0.33512732,43483.0,43480.0,0.35637616]
[1646284875182,0.33512732,43483.0,43480.0,0.355318]
[1646284875880,0.33512732,43482.0,43480.0,0.355318]
[1646284876485,0.33512732,43483.0,43480.0,0.355318]
[1646284876683,0.33512732,43484.0,43481.0,0.3]
[1646284876952,0.1235,43488.0,43483.0,0.46273602]
[1646284876953,0.28735678,43485.0,43483.0,0.46273602]
[1646284877146,0.28734323,43490.0,43486.0,0.81805402]
[1646284877346,0.00057353,43492.0,43490.0,0.355318]
[1646284877546,0.00057353,43492.0,43491.0,0.9962549]
[1646284877749,0.33523377,43498.0,43493.0,0.355318]
[1646284877950,0.33523377,43502.0,43498.0,0.355318]
[1646284878147,0.33523377,43502.0,43500.0,0.355318]
[1646284878347,0.00014333,43510.0,43502.0,0.57043664]
[1646284878348,0.33523377,43503.0,43502.0,0.57043664]
[1646284878545,0.33523377,43503.0,43502.0,0.56371664]
[1646284878745,0.33523377,43504.0,43502.0,0.56371664]
[1646284878945,0.33523377,43503.0,43502.0,0.56371664]
[1646284879150,0.33523377,43504.0,43502.0,1.06371664]
[1646284879347,0.015,43511.0,43503.0,0.3]
[1646284879348,0.33523377,43505.0,43503.0,0.3]
[1646284879548,0.33523377,43505.0,43504.0,0.355318]
[1646284880351,0.33523377,43505.0,43504.0,0.855318]
[1646284880782,0.33523377,43506.0,43504.0,0.855318]
[1646284880982,0.33523377,43506.0,43505.0,0.2856117]
[1646284881179,0.33523377,43506.0,43505.0,0.6409297]
[1646284881383,0.33523377,43506.0,43505.0,0.855318]
[1646284881981,0.33523377,43507.0,43506.0,0.355318]
[1646284882880,0.33523377,43508.0,43506.0,0.355318]
[1646284883881,0.0001558,43509.0,43506.0,0.355318]
[1646284883882,0.33523377,43509.0,43506.0,0.355318]
[1646284884081,0.33540312,43509.0,43506.0,0.355318]
[1646284885122,0.33523377,43509.0,43506.0,0.355318]
[1646284885923,0.33540312,43510.0,43506.0,0.355318]
[1646284886422,0.33523377,43510.0,43506.0,0.355318]
[1646284886623,0.33540312,43510.0,43506.0,0.355318]
[1646284887622,0.33523377,43510.0,43506.0,0.355318]
[1646284887824,0.33523377,43511.0,43506.0,0.355318]
[1646284888023,0.17114348,43513.0,43506.0,0.355318]
[1646284888024,0.33540312,43510.0,43506.0,0.355318]
[1646284888666,0.33540312,43510.0,43508.0,0.355318]
[1646284888867,0.00033197,43510.0,43508.0,0.30199039]
[1646284889067,0.00016262,43510.0,43508.0,0.30199039]
[1646284889867,0.33523377,43511.0,43508.0,0.30199039]
[1646284890067,0.33539639,43511.0,43508.0,0.30199039]
[1646284890969,0.33523377,43511.0,43508.0,0.30199039]
[1646284891367,0.33539396,43512.0,43508.0,0.30199039]
[1646284892315,0.33523377,43512.0,43508.0,0.30199039]
[1646284892517,0.33539461,43512.0,43508.0,0.30199039]
[1646284893516,0.33523377,43512.0,43508.0,0.30199039]
[1646284893718,0.33539461,43512.0,43508.0,0.30199039]
[1646284894718,0.33523377,43512.0,43508.0,0.30199039]
[1646284894918,0.33539705,43512.0,43508.0,0.30199039]
[1646284895521,0.33539705,43512.0,43503.0,0.001]
[1646284895763,0.33539705,43512.0,43504.0,0.355153]
[1646284895964,0.33523377,43512.0,43504.0,0.355153]
[1646284896168,0.00016935,43510.0,43504.0,0.355153]
[1646284896766,0.00016935,43510.0,43506.0,0.355153]
[1646284897169,0.50637725,43513.0,43506.0,0.355153]
[1646284897366,0.00016935,43510.0,43506.0,0.355153]
[1646284898270,0.50637725,43513.0,43506.0,0.355153]
[1646284898571,0.00015362,43510.0,43506.0,0.355153]
[1646284899434,0.50637725,43513.0,43506.0,0.355153]
[1646284899635,0.00014988,43510.0,43506.0,0.355153]
[1646284900636,0.50637725,43513.0,43506.0,0.355153]
[1646284900935,0.00014988,43510.0,43506.0,0.355153]
[1646284901937,0.17114348,43513.0,43506.0,0.355153]
[1646284902138,0.00014988,43510.0,43506.0,0.355153]
[1646284903038,0.17114348,43513.0,43506.0,0.355153]
[1646284903273,0.00014417,43510.0,43506.0,0.355153]
[1646284903871,0.00014417,43510.0,43506.0,0.51546099]
[1646284904272,0.17114348,43513.0,43506.0,0.355153]
[1646284904672,0.00014417,43510.0,43506.0,0.355153]
[1646284905072,0.00014417,43510.0,43506.0,0.357153]
[1646284905274,0.00014417,43510.0,43506.0,0.56463283]
[1646284905574,0.17114348,43513.0,43506.0,0.56463283]
[1646284905773,0.00014417,43510.0,43506.0,0.357153]
[1646284906377,0.00014417,43510.0,43506.0,0.355153]
[1646284906773,0.17114348,43513.0,43506.0,0.53243368]
[1646284907013,0.00014516,43510.0,43506.0,0.357153]
[1646284907815,0.50637725,43513.0,43506.0,0.357153]
[1646284908215,0.00014516,43510.0,43506.0,0.357153]
[1646284908416,0.00014516,43510.0,43500.0,0.5]
[1646284908417,0.355153,43509.0,43500.0,0.5]
[1646284908617,0.00014516,43510.0,43502.0,0.5]
[1646284908618,0.3,43508.0,43502.0,0.5]
[1646284909217,0.15814176,43505.0,43502.0,0.5]
[1646284909819,0.15814176,43505.0,43500.0,0.21216063]
[1646284910518,0.15814176,43505.0,43501.0,0.355153]
[1646284910772,0.000145,43505.0,43501.0,0.355153]
[1646284910968,0.000145,43505.0,43496.0,0.43007546]
[1646284911169,0.001145,43505.0,43498.0,0.355153]
[1646284911571,0.001,43505.0,43498.0,0.355153]
[1646284911771,0.000145,43504.0,43501.0,0.355153]
[1646284912369,0.000145,43504.0,43501.0,0.5341419]
[1646284912773,0.33523377,43508.0,43501.0,0.1789889]
[1646284912972,0.000145,43505.0,43501.0,0.1789889]
[1646284913172,0.001,43504.0,43502.0,0.355153]
[1646284914519,0.00014503,43505.0,43501.0,0.1739889]
[1646284914720,0.00014503,43505.0,43502.0,0.355153]
[1646284915122,0.01149,43511.0,43502.0,0.355153]
[1646284915123,0.33523377,43508.0,43502.0,0.355153]
[1646284915328,0.00014502,43506.0,43502.0,0.355153]
[1646284915520,0.00014502,43506.0,43503.0,0.27506352]
[1646284915721,0.00014502,43506.0,43505.0,0.16376875]
[1646284915921,0.28703264,43506.0,43505.0,0.355153]
[1646284916322,0.28688762,43506.0,43505.0,0.355153]
[1646284916821,0.33532962,43508.0,43506.0,0.355153]
[1646284917022,0.33532962,43508.0,43505.0,0.355153]
[1646284917223,0.33532962,43508.0,43507.0,0.355153]
[1646284917422,0.33523377,43508.0,43507.0,0.355153]
[1646284917826,0.33537895,43509.0,43504.0,0.07382868]
[1646284918023,0.33494269,43509.0,43508.0,0.17781922]
[1646284918679,0.33479751,43509.0,43508.0,0.17781922]
[1646284919080,0.33479751,43509.0,43503.0,0.27506352]
[1646284919480,0.00015263,43511.0,43503.0,0.27506352]
[1646284919679,0.28702313,43504.0,43503.0,0.63023052]
[1646284919880,0.3,43513.0,43504.0,0.355167]
[1646284919881,0.33586032,43505.0,43504.0,0.355167]
[1646284920083,0.001,43505.0,43504.0,0.54487506]
[1646284920281,0.001,43505.0,43504.0,0.4425093]
[1646284920983,0.33486032,43505.0,43504.0,0.4425093]
[1646284921681,0.06480854,43505.0,43504.0,0.4425093]
[1646284921935,0.38300266,43510.0,43504.0,0.4445093]
[1646284922143,0.38300266,43510.0,43504.0,0.19170806]
[1646284922334,0.4478112,43510.0,43504.0,0.19170806]
[1646284922536,0.06495314,43509.0,43504.0,0.19170806]
[1646284922737,0.06480854,43508.0,43504.0,0.19170806]
[1646284922936,0.0001446,43509.0,43504.0,0.19170806]
[1646284922937,0.06480854,43507.0,43504.0,0.19170806]
[1646284923138,0.06480854,43506.0,43504.0,0.19170806]
[1646284923338,0.06480854,43505.0,43504.0,0.19170806]
[1646284923737,0.00014461,43507.0,43504.0,0.54687906]
[1646284923937,0.00014461,43507.0,43504.0,0.19370806]
[1646284924137,0.00014461,43507.0,43504.0,0.19170806]
[1646284924738,0.4478112,43511.0,43504.0,0.19170806]
[1646284924940,0.001,43517.0,43504.0,0.54687906]
[1646284924941,0.33511552,43505.0,43504.0,0.54687906]
[1646284925342,0.33511552,43505.0,43504.0,0.54487906]
[1646284925539,0.06480854,43505.0,43504.0,0.54487906]
[1646284925789,0.00014882,43508.0,43504.0,0.75981011]
[1646284925991,0.38300266,43512.0,43504.0,0.40763911]
[1646284926284,0.00015515,43507.0,43505.0,0.355171]
[1646284926486,0.00015515,43507.0,43504.0,0.19270806]
[1646284926685,0.00015515,43507.0,43504.0,0.003]
[1646284927082,0.06496369,43507.0,43504.0,0.003]
[1646284927284,0.06480854,43506.0,43504.0,0.28877128]
[1646284927483,0.06480854,43505.0,43504.0,0.28877128]
[1646284927684,0.06480854,43505.0,43504.0,0.64394228]
[1646284927886,0.00015515,43508.0,43504.0,0.16975084]
[1646284928087,0.00015515,43508.0,43504.0,0.52492184]
[1646284928289,0.00015515,43508.0,43504.0,0.16975084]
[1646284928583,0.00015041,43508.0,43504.0,0.16975084]
[1646284929630,0.38300266,43512.0,43504.0,0.16975084]
[1646284929825,0.0001435,43508.0,43504.0,0.16975084]
[1646284930028,0.0001435,43508.0,43504.0,0.17175084]
[1646284930831,0.38300266,43511.0,43504.0,0.17175084]
[1646284931130,0.0001435,43508.0,43504.0,0.17175084]
[1646284931432,0.0001435,43508.0,43504.0,0.16975084]
[1646284932029,0.38300266,43511.0,43504.0,0.16975084]
[1646284932230,0.00014442,43508.0,43504.0,0.16975084]
[1646284933281,0.38300266,43511.0,43504.0,0.16975084]
[1646284933484,0.00014505,43508.0,43504.0,0.16975084]
[1646284934381,0.06480854,43509.0,43504.0,0.16975084]
[1646284934581,0.06495359,43508.0,43504.0,0.16975084]
[1646284934784,0.06480854,43507.0,43504.0,0.16975084]
[1646284934983,0.06480854,43506.0,43504.0,0.16975084]
[1646284935181,0.00014505,43508.0,43504.0,0.16975084]
[1646284935584,0.38300266,43510.0,43504.0,0.16975084]
[1646284935784,0.00014505,43508.0,43504.0,0.16975084]
[1646284935991,0.00014505,43508.0,43505.0,0.355171]
[1646284936185,0.33509154,43506.0,43505.0,0.355171]
[1646284937431,0.33509154,43506.0,43505.0,0.8842911]
[1646284938234,0.33509154,43507.0,43505.0,0.8842911]
[1646284938433,0.33509154,43507.0,43506.0,0.0291201]
[1646284938637,0.33509154,43507.0,43506.0,0.3842911]
[1646284938831,0.33518707,43508.0,43506.0,0.3842911]
[1646284939035,0.33518707,43508.0,43507.0,0.0291201]
[1646284939233,0.33509154,43508.0,43507.0,0.3842911]
[1646284939430,0.27355367,43516.0,43507.0,0.3842911]
[1646284939431,0.33518707,43509.0,43507.0,0.3842911]
[1646284939634,0.33518707,43509.0,43508.0,0.0291201]
[1646284939832,0.33518707,43509.0,43508.0,0.63374617]
[1646284940233,0.33518707,43509.0,43508.0,0.52037156]
[1646284940431,0.33509154,43509.0,43508.0,0.52037156]
[1646284940872,0.33009154,43509.0,43508.0,0.52037156]
[1646284941975,0.33009154,43509.0,43508.0,0.52237156]
[1646284943178,0.0897745,43509.0,43508.0,0.24945507]
[1646284943378,0.00016347,43511.0,43505.0,0.5]
[1646284943577,0.28714731,43506.0,43505.0,0.5]
[1646284943780,0.28714731,43506.0,43505.0,0.995164]
[1646284944437,0.28714731,43506.0,43505.0,1.07701691]
[1646284944644,0.00015459,43508.0,43505.0,0.5]
[1646284945037,0.74050566,43515.0,43505.0,0.5]
[1646284945038,0.08957229,43513.0,43505.0,0.5]
[1646284945239,0.08957229,43512.0,43505.0,0.5]
[1646284945437,0.00015083,43509.0,43505.0,0.5]
[1646284945638,0.17746648,43509.0,43505.0,0.5]
[1646284945840,0.08957229,43508.0,43505.0,0.5]
[1646284946040,0.08957229,43507.0,43505.0,0.502]
[1646284946241,0.08957229,43506.0,43505.0,0.502]
[1646284946442,0.08957229,43506.0,43505.0,0.002]
[1646284947240,0.08957229,43506.0,43502.0,0.5]
[1646284947439,0.17731565,43509.0,43502.0,0.5]
[1646284947639,0.08776839,43508.0,43502.0,0.5]
[1646284947839,0.33502257,43506.0,43502.0,0.5]
[1646284948040,0.33502257,43506.0,43503.0,0.355164]
[1646284948281,0.33502257,43506.0,43504.0,0.355164]
[1646284948685,0.33502257,43506.0,43505.0,0.355164]
[1646284948882,0.33502257,43506.0,43503.0,0.00016992]
[1646284949084,0.33502257,43506.0,43504.0,0.355164]
[1646284949288,0.33502257,43506.0,43505.0,0.355164]
[1646284949485,0.33502257,43506.0,43504.0,0.355164]
[1646284949683,0.33502257,43505.0,43504.0,0.355164]
[1646284950084,0.33502257,43505.0,43504.0,0.357164]
[1646284951386,0.33502257,43505.0,43504.0,0.355164]
[1646284951588,0.33502257,43505.0,43503.0,0.355164]
[1646284952427,0.33502257,43504.0,43503.0,0.355164]
[1646284953926,0.33502257,43505.0,43503.0,0.355164]
[1646284954131,0.33502257,43504.0,43503.0,0.355164]
[1646284955126,0.33502257,43504.0,43502.0,0.355164]
[1646284955326,0.33502257,43505.0,43502.0,0.355164]
[1646284956288,0.33502257,43505.0,43502.0,0.357164]
[1646284956485,0.33502257,43504.0,43502.0,0.357164]
[1646284957786,0.33502257,43504.0,43502.0,0.355164]
[1646284957986,0.06748459,43508.0,43502.0,0.355164]
[1646284957987,0.33502257,43505.0,43502.0,0.355164]
[1646284958287,0.33502257,43505.0,43502.0,0.357164]
[1646284959193,0.33502257,43504.0,43502.0,0.357164]
[1646284959425,0.33502257,43504.0,43503.0,0.5]
[1646284959627,0.33502257,43504.0,43503.0,0.855164]
[1646284960028,0.33502257,43504.0,43503.0,0.857164]
[1646284960626,0.33502257,43505.0,43503.0,0.857164]
[1646284960829,0.33502257,43504.0,43503.0,0.857164]
[1646284961231,0.33502257,43505.0,43504.0,0.355164]
[1646284961429,0.33502257,43505.0,43504.0,0.3]
[1646284961628,0.33502257,43505.0,43504.0,0.8]
[1646284961831,0.33502257,43505.0,43504.0,1.155164]
[1646284962032,0.33502257,43505.0,43504.0,1.158164]
[1646284962630,0.33502257,43506.0,43504.0,1.158164]
[1646284962832,0.33508887,43505.0,43504.0,0.503]
[1646284963030,0.33508887,43505.0,43504.0,0.858164]
[1646284963282,0.33508887,43505.0,43504.0,0.855164]
[1646284964083,0.05764504,43505.0,43504.0,0.5]
[1646284964282,0.38289386,43512.0,43504.0,0.5]
[1646284964487,0.38289386,43512.0,43508.0,0.21419383]
[1646284964488,0.05764504,43511.0,43508.0,0.21419383]
[1646284964685,0.05764504,43510.0,43508.0,0.21419383]
[1646284964886,0.05764504,43509.0,43508.0,0.21419383]
[1646284965286,0.05764504,43512.0,43508.0,0.21419383]
[1646284965589,0.05764504,43511.0,43506.0,0.21429933]
[1646284965784,0.05764504,43510.0,43506.0,0.21429933]
[1646284966187,0.13939501,43516.0,43508.0,0.001]
[1646284966385,0.38295456,43514.0,43508.0,0.001]
[1646284967437,0.38295456,43514.0,43507.0,0.21188941]
[1646284967639,0.46412038,43513.0,43506.0,0.21429933]
[1646284967838,0.08116582,43512.0,43506.0,0.21429933]
[1646284968040,0.08116582,43511.0,43506.0,0.21429933]
[1646284968337,0.08116582,43510.0,43506.0,0.21429933]
[1646284969239,0.38295456,43514.0,43507.0,0.22073333]
[1646284970239,0.38295456,43514.0,43507.0,0.22273333]
[1646284971385,0.38295456,43514.0,43507.0,0.22073333]
[1646284972183,0.38295456,43514.0,43507.0,0.22273333]
[1646284973484,0.38295456,43514.0,43507.0,0.22073333]
[1646284974186,0.38295456,43514.0,43507.0,0.22273333]
[1646284974424,0.46412038,43515.0,43507.0,0.22273333]
[1646284974730,0.08116582,43514.0,43507.0,0.22273333]
[1646284974926,0.08116582,43513.0,43508.0,0.355164]
[1646284975128,0.08116582,43512.0,43507.0,0.22273333]
[1646284975327,0.08116582,43511.0,43507.0,0.22073333]
[1646284975627,0.08116582,43510.0,43508.0,0.355164]
[1646284975826,0.08116582,43509.0,43508.0,0.355164]
[1646284976027,0.46412038,43515.0,43507.0,0.22273333]
[1646284976229,0.08116582,43514.0,43507.0,0.22273333]
[1646284976428,0.08116582,43513.0,43507.0,0.22273333]
[1646284976628,0.08116582,43512.0,43508.0,0.355164]
[1646284976829,0.08116582,43511.0,43508.0,0.355164]
[1646284977029,0.08116582,43510.0,43508.0,0.355164]
[1646284977234,0.08116582,43509.0,43508.0,0.57295156]
[1646284977630,0.08116582,43515.0,43507.0,0.22073333]
[1646284977833,0.33506153,43508.0,43507.0,0.22073333]
[1646284978033,0.08116582,43508.0,43507.0,0.22073333]
[1646284978473,0.46412038,43515.0,43507.0,0.22073333]
[1646284978677,0.08116582,43514.0,43506.0,0.21429933]
[1646284978875,0.3350643,43507.0,43506.0,0.21429933]
[1646284979676,0.3350643,43507.0,43506.0,0.56946333]
[1646284979880,0.3350643,43507.0,43506.0,0.46517144]
[1646284980078,0.3350643,43507.0,43506.0,0.82033544]
[1646284980480,0.3350643,43507.0,43506.0,0.46517144]
[1646284981282,0.3350643,43507.0,43506.0,0.82033544]
[1646284981481,0.3350643,43507.0,43506.0,0.355164]
[1646284981681,0.3350643,43507.0,43505.0,0.355164]
[1646284981682,0.09800655,43507.0,43505.0,0.355164]
[1646284981926,0.38295456,43514.0,43505.0,0.355164]
[1646284981927,0.33508015,43506.0,43505.0,0.355164]
[1646284982530,0.4809629,43515.0,43506.0,0.23340422]
[1646284982531,0.33508015,43507.0,43506.0,0.23340422]
[1646284982928,0.33508015,43507.0,43505.0,0.2153066]
[1646284984331,0.33508015,43508.0,43505.0,0.2153066]
[1646284985036,0.33508015,43507.0,43505.0,0.2153066]
[1646284985431,0.33508015,43507.0,43505.0,0.19252234]
[1646284985693,0.33508015,43506.0,43505.0,0.19252234]
[1646284985894,0.09800155,43511.0,43505.0,0.54768634]
[1646284985895,0.33508015,43507.0,43505.0,0.54768634]
[1646284986093,0.33508015,43507.0,43505.0,0.19252234]
[1646284987096,0.33508015,43507.0,43506.0,0.355164]
[1646284988296,0.16542002,43512.0,43505.0,0.19252234]
[1646284988297,0.33508015,43508.0,43505.0,0.19252234]
[1646284988595,0.28719937,43506.0,43505.0,0.54768634]
[1646284988997,0.28719937,43506.0,43505.0,0.355164]
[1646284989197,0.33508015,43507.0,43504.0,0.00016373]
[1646284989452,0.06534771,43510.0,43504.0,0.00016373]
[1646284989453,0.355164,43505.0,43504.0,0.00016373]
[1646284989648,0.09740537,43505.0,43501.0,0.003]
[1646284989849,0.09740537,43504.0,43503.0,0.00015482]
[1646284990049,0.6450702,43504.0,43503.0,0.00015482]
[1646284990450,0.2899062,43504.0,43503.0,0.00015482]
[1646284990849,0.2899062,43504.0,43501.0,0.003]
[1646284991050,0.33510695,43502.0,43501.0,0.00314797]
[1646284992052,0.33510695,43502.0,43501.0,0.003]
[1646284992251,0.33510695,43502.0,43499.0,0.00014798]
[1646284993296,0.33510695,43502.0,43498.0,0.00014881]
[1646284993492,0.28722164,43499.0,43498.0,0.00014881]
[1646284993697,0.28722164,43499.0,43498.0,0.35531281]
[1646284994091,0.33510695,43501.0,43498.0,0.00014881]
[1646284994293,0.33510695,43501.0,43494.0,0.003]
[1646284994494,0.28723715,43496.0,43494.0,0.003]
[1646284994694,0.28723715,43495.0,43486.0,0.3]
[1646284994895,0.23936868,43492.0,43487.0,0.5416274]
[1646284995093,0.23936868,43493.0,43487.0,0.5416274]